[Event "10th Cesme Open-A 2024"]
[Site "Cesme"]
[Date "2024.06.24"]
[Round "2"]
[White "Ceyhan, Mert"]
[Black "Tarlabasi, Emirhan"]
[Result "0-1"]
[ECO "C01"]
[WhiteElo "2018"]
[BlackElo "2303"]
[Annotator "RC"]
[PlyCount "68"]
[EventDate "2024.06.23"]
[EventType "swiss"]
[EventCountry "TUR"]
[SourceTitle "playchess.com"]
[Source "ChessBase"]
[SourceQuality "1"]
[TimeControl "5400+30"]

1. e4 {[%emt 0:01:00]} e6 {[%emt 0:01:00]} 2. d4 {[%emt 0:00:00]} d5 {[%emt 0:01:30]} 3. Nc3 {[%emt 0:01:00]} Bb4 {[%emt 0:01:30]} 4. exd5 {[%emt 0:00:30]} exd5 {[%emt 0:00:30]} 5. Bd3 {[%emt 0:00:00]} Nc6 {[%emt 0:00:30]} 6. a3 {[%emt 0:04:00]} Ba5 {[%emt 0:03:30]} 7. Nge2 {[%emt 0:01:30]} Nge7 {[%emt 0:00:30]} 8. O-O {[%emt 0:01:30]} Bg4 {[%emt 0:03:30]} 9. f3 {[%emt 0:01:30]} Bf5 {[%emt 0:02:30]} 10. Be3 {[%emt 0:02:30]} Qd7 {[%emt 0:03:30]} 11. Na4 {[%emt 0:05:30]} Bb6 {[%emt 0:08:30]} 12. c3 {[%emt 0:11:30]} Bxd3 {[%emt 0:03:30]} 13. Qxd3 {[%emt 0:00:30]} Nxd4 {[%emt 0:04:30]} 14. Nxb6 {[%emt 0:00:30]} Nxe2+ {[%emt 0:00:30]} 15. Qxe2 {[%emt 0:00:30]} axb6 {[%emt 0:00:30]} 16. Rfe1 {[%emt 0:00:00]} O-O {[%emt 0:13:30]} 17. Bxb6 {[%emt 0:00:00]} Rfe8 {[%emt 0:01:30]} 18. Bf2 {[%emt 0:00:30]} Ng6 {[%emt 0:04:30]} 19. Qd2 {[%emt 0:01:30]} Qb5 {[%emt 0:01:30]} 20. Rxe8+ {[%emt 0:06:30]} Rxe8 {[%emt 0:00:30]} 21. Rd1 {[%emt 0:04:30]} h6 {[%emt 0:06:30]} 22. b4 {[%emt 0:06:30]} c6 {[%emt 0:03:30]} 23. Re1 {[%emt 0:01:30]} Ra8 {[%emt 0:06:30]} 24. f4 {[%emt 0:03:30]} Qc4 {[%emt 0:03:30]} 25. Bg3 {[%emt 0:08:30]} Rxa3 {[%emt 0:06:25]} 26. f5 {[%emt 0:01:30]} Nh4 {[%emt 0:01:08]} 27. f6 {[%emt 0:04:30]} Ra2 {[%emt 0:08:22]} 28. Qe3 {[%emt 0:00:30]} Rxg2+ {[%emt 0:01:48]} 29. Kh1 {[%emt 0:00:30]} Qa2 {[%emt 0:01:08]} 30. Rg1 {[%emt 0:02:30]} Qc2 {[%emt 0:01:03]} 31. Bf2 {[%emt 0:06:30]} Qxf2 {[%emt 0:01:49]} 32. Qxf2 {[%emt 0:00:30]} Rxf2 {[%emt 0:00:30]} 33. Rxg7+ {[%emt 0:00:30]} Kf8 {[%emt 0:00:30]} 34. Rh7 {[%emt 0:00:30]} Rf1# {[%emt 0:00:00]} 0-1

[Event "10th Cesme Open-A 2024"]
[Site "Cesme"]
[Date "2024.06.24"]
[Round "2"]
[White "Demirbas, Emre"]
[Black "Kamer, Kayra"]
[Result "0-1"]
[ECO "A16"]
[WhiteElo "2012"]
[BlackElo "2316"]
[Annotator "RC"]
[PlyCount "106"]
[EventDate "2024.06.23"]
[EventType "swiss"]
[EventCountry "TUR"]
[SourceTitle "playchess.com"]
[Source "ChessBase"]
[SourceQuality "1"]
[TimeControl "5400+30"]

1. Nf3 {[%emt 0:01:00]} g6 {[%emt 0:07:00]} 2. c4 {[%emt 0:00:30]} Bg7 {[%emt 0:00:30]} 3. Nc3 {[%emt 0:00:30]} Nf6 {[%emt 0:00:30]} 4. b3 {[%emt 0:00:30]} Ne4 {[%emt 0:01:30]} 5. Bb2 {[%emt 0:00:30]} Nxc3 {[%emt 0:00:30]} 6. Bxc3 {[%emt 0:00:30]} Bxc3 {[%emt 0:00:30]} 7. dxc3 {[%emt 0:00:30]} d6 {[%emt 0:00:00]} 8. g3 {[%emt 0:00:00]} Nd7 {[%emt 0:00:00]} 9. Bg2 {[%emt 0:02:00]} e5 {[%emt 0:00:00]} 10. O-O {[%emt 0:00:30]} a5 {[%emt 0:00:00]} 11. Ne1 {[%emt 0:04:30]} Qe7 {[%emt 0:01:30]} 12. Nd3 {[%emt 0:03:30]} O-O {[%emt 0:01:30]} 13. e4 {[%emt 0:01:30]} Nf6 {[%emt 0:02:30]} 14. Qf3 {[%emt 0:04:30]} Bd7 {[%emt 0:05:30]} 15. c5 {[%emt 0:05:30]} dxc5 {[%emt 0:00:30]} 16. Nxc5 {[%emt 0:00:30]} Bc6 {[%emt 0:01:30]} 17. Rfe1 {[%emt 0:05:30]} Qxc5 {[%emt 0:04:30]} 18. Qxf6 {[%emt 0:02:30]} Rad8 {[%emt 0:04:30]} 19. h4 {[%emt 0:09:30]} Rd6 {[%emt 0:03:30]} 20. Qg5 {[%emt 0:10:30]} Qxc3 {[%emt 0:01:30]} 21. Rac1 {[%emt 0:02:30]} Qb2 {[%emt 0:00:30]} 22. h5 {[%emt 0:02:30]} Re8 {[%emt 0:02:30]} 23. Rcd1 {[%emt 0:04:30]} Qa3 {[%emt 0:02:30]} 24. Bf3 {[%emt 0:03:30]} Rxd1 {[%emt 0:03:30]} 25. Rxd1 {[%emt 0:01:30]} Qe7 {[%emt 0:00:30]} 26. Qd2 {[%emt 0:01:30]} a4 {[%emt 0:01:30]} 27. bxa4 {[%emt 0:00:30]} Bxa4 {[%emt 0:00:00]} 28. Rb1 {[%emt 0:00:00]} Rd8 {[%emt 0:00:00]} 29. Qe3 {[%emt 0:03:00]} Bc6 {[%emt 0:00:30]} 30. Kg2 {[%emt 0:00:30]} Rd4 {[%emt 0:00:30]} 31. h6 {[%emt 0:15:40]} Qd6 {[%emt 0:01:30]} 32. Rb3 {[%emt 0:01:09]} Kf8 {[%emt 0:07:30]} 33. Ra3 {[%emt 0:02:05]} Ba4 {[%emt 0:02:30]} 34. Rc3 {[%emt 0:04:01]} c5 {[%emt 0:01:30]} 35. Qc1 {[%emt 0:00:39]} b6 {[%emt 0:00:00]} 36. Rc4 {[%emt 0:01:39]} Bc6 {[%emt 0:01:00]} 37. Qc2 {[%emt 0:02:41]} Ke7 {[%emt 0:01:30]} 38. a4 {[%emt 0:01:13]} Rd2 {[%emt 0:02:30]} 39. Qb3 {[%emt 0:03:04]} Bd7 {[%emt 0:01:30]} 40. Rc2 {[%emt 0:00:48]} Rd3 {[%emt 0:00:30]} 41. Qc4 {[%emt 0:00:49]} Rd4 {[%emt 0:04:30]} 42. Qa6 {[%emt 0:00:34]} Rxa4 {[%emt 0:00:30]} 43. Qb7 {[%emt 0:00:00]} Kf6 {[%emt 0:02:30]} 44. Rb2 {[%emt 0:01:26]} b5 {[%emt 0:00:30]} 45. Rxb5 {[%emt 0:01:41]} Bxb5 {[%emt 0:00:30]} 46. Qxb5 {[%emt 0:00:00]} Ra8 {[%emt 0:00:30]} 47. Be2 {[%emt 0:00:05]} Kg5 {[%emt 0:00:30]} 48. Qb7 {[%emt 0:00:57]} Rf8 {[%emt 0:00:30]} 49. Bc4 {[%emt 0:00:41]} Kxh6 {[%emt 0:00:30]} 50. Bd5 {[%emt 0:00:30]} Kg7 {[%emt 0:00:00]} 51. Kg1 {[%emt 0:00:04]} h5 {[%emt 0:00:00]} 52. Kg2 {[%emt 0:00:30]} Kh6 {[%emt 0:00:00]} 53. Qb3 {[%emt 0:00:08]} f5 {[%emt 0:00:00]} 0-1